bitfinex/quotes_BTCUSD_20250110
["timestamp","ask_amount","ask_price","bid_price","bid_amount"]
[1736520625301,0.15,93925.0,93884.0,0.10429976]
[1736520625505,0.212967,93912.0,93884.0,0.11064888]
[1736520625719,0.212979,93906.0,93903.0,0.002]
[1736520625933,0.01172,93918.0,93903.0,0.002]
[1736520626153,0.212953,93917.0,93903.0,0.002]
[1736520626361,0.01172,93927.0,93906.0,0.212978]
[1736520626568,0.004,93925.0,93907.0,0.10429976]
[1736520626980,0.21295,93919.0,93907.0,0.10429976]
[1736520627208,0.004,93925.0,93908.0,0.173]
[1736520627453,0.004,93925.0,93923.0,0.15]
[1736520627736,0.010575,93980.0,93941.0,0.3294]
[1736520627935,0.011891,93983.0,93941.0,0.3294]
[1736520627936,0.000171,93983.0,93954.0,0.15]
[1736520628142,0.000171,93983.0,93975.0,0.212821]
[1736520628348,0.000171,93983.0,93976.0,0.212818]
[1736520628551,0.000171,93983.0,93960.0,0.15]
[1736520628767,0.000171,93983.0,93979.0,0.212812]
[1736520628971,0.000171,93983.0,93979.0,0.425625]
[1736520629194,0.000171,93983.0,93982.0,0.2288]
[1736520629418,0.0001708,94006.0,93983.0,0.023]
[1736520629642,0.0001708,94006.0,93999.0,0.212767]
[1736520629846,0.0001708,94006.0,94001.0,0.212763]
[1736520630056,0.0001708,94006.0,94003.0,0.235759]
[1736520630264,0.0001708,94006.0,94003.0,0.34005876]
[1736520630468,0.0001708,94006.0,94003.0,0.49005876]
[1736520631095,0.212755,94005.0,93980.0,0.212809]
[1736520631313,0.212759,94003.0,93983.0,0.10429976]
[1736520631542,0.0001708,94006.0,93984.0,0.212802]
[1736520631727,0.212762,94002.0,93985.0,0.10429976]
[1736520631946,0.212762,94002.0,93960.0,0.29959497]
[1736520631947,0.0001708,94006.0,93995.0,0.10429976]
[1736520632170,0.0001708,94006.0,94003.0,0.25429976]
[1736520632386,0.0001708,94006.0,94003.0,0.49005876]
[1736520632612,0.02183854,94055.0,94003.0,0.49005876]
[1736520632613,0.01172,94055.0,94010.0,0.173]
[1736520632870,0.21266,94047.0,94016.0,0.173]
[1736520633085,0.42532,94047.0,94030.0,0.212697]
[1736520633292,0.42532,94047.0,94008.0,0.1]
[1736520633293,0.21267,94043.0,94031.0,0.10429976]
[1736520633513,0.212653,94050.0,94012.0,0.362737]
[1736520633727,0.212711,94025.0,94013.0,0.10429976]
[1736520633895,0.15,94049.0,94013.0,0.10429976]
[1736520633896,0.212695,94032.0,94013.0,0.10429976]
[1736520634106,0.0118506,94039.0,94014.0,0.212734]
[1736520634311,0.01168,94038.0,94015.0,0.10429976]
[1736520634479,0.0001706,94039.0,94016.0,0.023]
[1736520634865,0.0001706,94039.0,94038.0,0.173]
[1736520635072,0.0001706,94039.0,94038.0,0.27729976]
[1736520635296,0.0257708,94086.0,94051.0,0.36265]
[1736520635297,0.0140908,94086.0,94051.0,0.36265]
[1736520635504,0.01168,94081.0,94051.0,0.56694976]
[1736520635681,9.1e-05,94052.0,94051.0,0.68994976]
[1736520635907,9.1e-05,94052.0,94051.0,0.49022944]
[1736520636117,9.1e-05,94052.0,94051.0,0.59022944]
[1736520636335,0.0140908,94086.0,94062.0,0.273]
[1736520636544,0.0140908,94086.0,94063.0,0.46692276]
[1736520636749,0.0140908,94086.0,94063.0,0.48992276]
[1736520636955,0.212578,94083.0,94063.0,0.46692276]
[1736520637158,0.2127618,94077.0,94063.0,0.10429976]
[1736520637374,0.2127756,94071.0,94056.0,0.212638]
[1736520637585,0.21261,94069.0,94057.0,0.10429976]
[1736520637789,0.4254146,94064.0,94063.0,0.00387388]
[1736520637980,0.212648,94052.0,94051.0,0.00827968]
[1736520638245,0.212648,94052.0,94051.0,0.00327968]
[1736520638445,0.48821256,94052.0,94051.0,0.00327968]
[1736520638663,0.212701,94029.0,94010.0,0.425484]
[1736520638864,0.212691,94033.0,94011.0,0.10429976]
[1736520638982,0.01168,94038.0,94011.0,0.10520401]
[1736520639184,0.212703,94028.0,94011.0,0.10520401]
[1736520639384,0.01168,94038.0,94011.0,0.10520401]
[1736520639587,0.21265,94051.0,94015.0,0.10429976]
[1736520639789,0.001,94052.0,94025.0,0.15]
[1736520639995,0.001,94052.0,94021.0,0.212716]
[1736520639996,0.001,94052.0,94039.0,0.212675]
[1736520640194,0.001,94052.0,94027.0,0.15]
[1736520640195,0.0001706,94064.0,94040.0,0.10429976]
[1736520640422,0.212656,94049.0,94040.0,0.10429976]
[1736520640633,0.0001706,94064.0,94027.0,0.362704]
[1736520640634,0.0001706,94064.0,94027.0,0.212704]
[1736520640866,0.10429976,94063.0,94028.0,0.10429976]
[1736520641085,0.00132915,94062.0,94029.0,0.15]
[1736520641390,0.0001706,94064.0,94036.0,0.212683]
[1736520641391,0.212644,94054.0,94036.0,0.212683]
[1736520641589,0.212644,94054.0,94037.0,0.10429976]
[1736520641822,0.01168,94061.0,94037.0,0.10429976]
[1736520642382,0.0001706,94064.0,94039.0,0.15]
[1736520642585,0.0001706,94064.0,94037.0,0.10429976]
[1736520642586,0.0001706,94064.0,94060.0,0.212628]
[1736520642767,0.0001706,94064.0,94040.0,0.37539497]
[1736520642768,0.0001706,94064.0,94061.0,0.10429976]
[1736520642992,0.0001706,94064.0,94040.0,0.37539497]
[1736520642993,0.0001706,94064.0,94040.0,0.0758]
[1736520643199,0.212626,94062.0,94041.0,0.10429976]
[1736520643399,0.0001706,94064.0,94043.0,0.212668]
[1736520643622,0.0001706,94064.0,94049.0,0.10429976]
[1736520643882,0.0001706,94064.0,94061.0,0.212627]
[1736520644116,0.0001706,94064.0,94062.0,0.10429976]
[1736520644598,0.0001706,94064.0,94060.0,0.003]
[1736520644809,0.425246,94063.0,94060.0,0.003]
[1736520645019,0.425246,94063.0,94050.0,0.00081603]
[1736520645020,0.212627,94061.0,94050.0,0.00081603]
[1736520645236,0.212627,94061.0,94043.0,0.425336]
[1736520645457,0.0001706,94064.0,94040.0,0.0758]
[1736520645458,0.21263,94060.0,94045.0,0.212664]
[1736520645668,0.212636,94058.0,94046.0,0.10429976]
[1736520645882,0.01168,94057.0,94046.0,0.00691968]
[1736520646093,0.212639,94056.0,94046.0,0.00691968]
[1736520646303,0.01168,94057.0,94047.0,0.10429976]
[1736520646516,0.0001706,94064.0,94059.0,0.21263]
[1736520646739,0.0001706,94064.0,94063.0,0.10429976]
[1736520647153,0.0001706,94064.0,94063.0,0.10966398]
[1736520647370,0.0001706,94064.0,94063.0,0.25966398]
[1736520648004,0.0001706,94064.0,94063.0,0.28266398]
[1736520648426,0.0001706,94064.0,94063.0,0.10966398]
[1736520649047,0.0001706,94064.0,94063.0,0.13266398]
[1736520649254,0.0001706,94064.0,94063.0,0.13666398]
[1736520649662,0.0001706,94064.0,94063.0,0.11366398]
[1736520649878,0.0001706,94064.0,94063.0,0.10966398]
[1736520650085,0.0001706,94064.0,94063.0,0.13466398]
[1736520650303,0.0001706,94064.0,94063.0,0.11166398]
[1736520650523,0.0001706,94064.0,94063.0,0.00736422]
[1736520650756,0.0001706,94064.0,94063.0,0.002]
[1736520651173,0.0001706,94064.0,94063.0,0.10629976]
[1736520651389,0.0001706,94064.0,94063.0,0.01050814]
[1736520651596,0.00149951,94064.0,94063.0,0.01050814]
[1736520651810,0.25579927,94064.0,94063.0,0.01050814]
[1736520652037,0.25447036,94064.0,94063.0,0.002]
[1736520652286,0.212665,94045.0,94032.0,0.212692]
[1736520652534,0.212665,94045.0,94033.0,0.10429976]
[1736520652767,0.212665,94045.0,94033.0,0.11287225]
[1736520653003,0.21268,94038.0,94033.0,0.00857249]
[1736520653436,0.21268,94038.0,94017.0,0.212727]
[1736520653437,0.212698,94031.0,94017.0,0.212727]
[1736520653638,0.01168,94051.0,94007.0,0.212748]
[1736520653639,0.29959497,94050.0,94007.0,0.212748]
[1736520653945,0.29959497,94050.0,94006.0,0.0819]
[1736520653946,0.212708,94026.0,94018.0,0.00860468]
[1736520654164,0.212711,94024.0,93996.0,0.212773]
[1736520654333,0.001,94038.0,93998.0,0.21277]
[1736520654585,0.21272,94021.0,94005.0,0.212754]
[1736520654813,0.001,94038.0,94010.0,0.10429976]
[1736520655044,0.212682,94037.0,94015.0,0.212731]
[1736520655262,0.00132943,94036.0,94015.0,0.10429976]
[1736520655478,0.2127,94029.0,94016.0,0.11290873]
[1736520655685,0.001,94038.0,94016.0,0.00860897]
[1736520655920,0.212726,94018.0,94016.0,0.00860897]
[1736520656132,0.425452,94018.0,94001.0,0.15]
[1736520656334,0.10429976,94037.0,94001.0,0.15]
[1736520656335,0.10429976,94037.0,94002.0,0.31705876]
[1736520656544,0.212684,94036.0,94002.0,0.11293878]
[1736520656755,0.212739,94012.0,94002.0,0.00863902]
[1736520656982,0.212739,94012.0,93990.0,0.15]
[1736520656983,0.29959497,94030.0,93989.0,0.290089]
[1736520657188,0.29959497,94030.0,94003.0,0.00863687]
[1736520657189,0.212752,94006.0,94003.0,0.00863687]
[1736520657616,0.212752,94006.0,93990.0,0.10429976]
[1736520657808,0.212752,94006.0,93990.0,0.52987576]
[1736520658038,0.212728,94017.0,93999.0,0.212767]
[1736520658304,0.261486,94036.0,94000.0,0.10429976]
[1736520658305,0.01136,94020.0,94000.0,0.10429976]
[1736520658497,0.01136,94020.0,94000.0,0.11294308]
[1736520658719,0.212725,94018.0,94000.0,0.32570708]
[1736520658925,0.212735,94014.0,94000.0,0.32570708]
[1736520659132,0.212736,94013.0,94000.0,0.32570808]
[1736520659419,0.21274,94012.0,94000.0,0.11294308]
[1736520659704,0.11924,94055.0,94002.0,0.10429976]
[1736520659914,0.212623,94063.0,94027.0,0.12729976]
[1736520660135,0.212646,94053.0,94029.0,0.15]
[1736520660366,0.212665,94045.0,94030.0,0.10429976]
[1736520660580,0.004,94050.0,94030.0,0.00891809]
[1736520660797,0.212656,94049.0,94031.0,0.31699476]
[1736520661036,0.29959497,94060.0,94026.0,0.212706]
[1736520661037,0.212682,94038.0,94026.0,0.212706]
[1736520661268,0.02101114,94077.0,94031.0,0.00891594]
[1736520661491,0.2127638,94077.0,94059.0,0.212632]
[1736520661703,0.2127718,94073.0,94060.0,0.10429976]
[1736520661908,0.2127718,94073.0,94060.0,0.1131535]
[1736520662128,0.212623,94063.0,94060.0,0.00885374]
[1736520662349,0.0001706,94071.0,94061.0,0.10429976]
[1736520662772,0.0001706,94071.0,94063.0,0.212623]
[1736520662949,0.0001706,94071.0,94063.0,0.10429976]
[1736520663207,0.0001706,94071.0,94063.0,0.28614707]
[1736520663492,0.0001706,94071.0,94063.0,0.36684707]
[1736520663699,0.0001706,94071.0,94063.0,0.51344707]
[1736520663912,0.0001706,94071.0,94070.0,0.485607]
[1736520664123,0.0001706,94092.0,94083.0,0.362578]
[1736520664335,0.0001706,94092.0,94089.0,0.762564]
[1736520664543,0.0001706,94092.0,94089.0,0.48986376]
[1736520664747,0.0001706,94092.0,94089.0,0.49059165]
[1736520665173,0.0001706,94092.0,94089.0,0.77327967]
[1736520665359,0.223795,94147.0,94101.0,0.173]
[1736520665609,0.01136,94147.0,94113.0,0.15]
[1736520665838,0.01136,94147.0,94133.0,0.212465]
[1736520666067,0.0140908,94180.0,94133.0,0.48976476]
[1736520666296,0.212385,94169.0,94133.0,0.48976476]
[1736520666517,0.01136,94179.0,94133.0,0.48976476]
[1736520666744,0.212372,94175.0,94133.0,0.78976476]
[1736520666970,0.212372,94175.0,94133.0,0.48976476]
[1736520667203,0.212369,94176.0,94133.0,0.78976476]
[1736520667411,0.212381,94171.0,94133.0,0.48976476]
[1736520667621,0.212381,94171.0,94133.0,0.49039329]
[1736520667843,0.212381,94171.0,94133.0,0.49909062]
[1736520667844,0.212391,94166.0,94133.0,0.49909062]
[1736520668051,0.212381,94171.0,94152.0,0.212421]
[1736520668227,0.0140908,94180.0,94157.0,0.21241]
[1736520668501,0.212362,94179.0,94158.0,0.10429976]
[1736520668708,0.0140908,94180.0,94158.0,0.27729976]
[1736520669571,0.212364,94178.0,94158.0,0.10429976]
[1736520669824,0.0140908,94180.0,94158.0,0.10429976]
[1736520670050,0.0140908,94180.0,94158.0,0.27729976]
[1736520670293,0.0140908,94180.0,94158.0,0.10429976]
[1736520671133,0.0140908,94180.0,94158.0,0.12729976]
[1736520671340,0.0140908,94180.0,94158.0,0.12787188]
[1736520671547,0.0140908,94180.0,94158.0,0.21467188]
[1736520672179,0.0140908,94180.0,94158.0,0.20967188]
[1736520672388,0.0140908,94180.0,94158.0,0.21267188]
[1736520672594,0.212364,94178.0,94158.0,0.21267188]
[1736520673018,0.212364,94178.0,94158.0,0.18667188]
[1736520673228,0.212379,94172.0,94158.0,0.00557212]
[1736520673431,0.0115,94161.0,94158.0,0.00557212]
[1736520674074,0.00014,94161.0,94158.0,0.005]
[1736520674278,0.212543,94161.0,94158.0,0.005]
[1736520674488,0.212432,94148.0,94131.0,0.212467]
[1736520674695,0.00014,94161.0,94123.0,0.079]
[1736520674696,0.00014,94161.0,94132.0,0.10429976]
[1736520674917,0.01136,94158.0,94133.0,0.15]
[1736520675116,0.01136,94158.0,94132.0,0.10493055]
[1736520675117,0.01136,94158.0,94138.0,0.023]
[1736520675331,0.212412,94157.0,94139.0,0.10429976]
[1736520675558,0.01136,94158.0,94132.0,0.00063079]
[1736520675774,0.212448,94141.0,94132.0,0.00063079]
[1736520675991,0.001,94148.0,94133.0,0.10429976]
[1736520676171,0.01136,94158.0,94134.0,0.15]
[1736520676425,0.21341,94158.0,94140.0,0.212447]
[1736520676685,0.21341,94158.0,94154.0,0.212417]
[1736520676686,0.001,94158.0,94154.0,0.212417]
[1736520676908,0.001,94158.0,94157.0,0.27729976]
[1736520677119,0.001,94158.0,94157.0,0.37729976]
[1736520677558,0.00132698,94210.0,94158.0,0.462408]
[1736520677768,8.51e-05,94197.0,94179.0,0.362361]
[1736520678017,8.51e-05,94197.0,94179.0,0.48966076]
[1736520678226,8.51e-05,94197.0,94179.0,0.81796076]
[1736520678227,8e-07,94180.0,94179.0,0.81796076]
[1736520678688,8.51e-05,94197.0,94196.0,0.212323]
[1736520678893,8.51e-05,94197.0,94196.0,0.31662276]
[1736520679106,8.51e-05,94197.0,94163.0,0.0771]
[1736520679320,8.51e-05,94197.0,94168.0,0.10429976]
[1736520679529,0.212323,94196.0,94179.0,0.009]
[1736520679733,0.212341,94188.0,94180.0,0.10429976]
[1736520679932,0.212341,94188.0,94179.0,0.009]
[1736520680143,0.212352,94184.0,94181.0,0.00880436]
[1736520680362,0.212352,94184.0,94179.0,0.009]
[1736520680600,0.212352,94184.0,94145.0,0.0772]
[1736520680601,8.51e-05,94197.0,94182.0,0.10429976]
[1736520680818,0.00141218,94197.0,94142.0,0.3]
[1736520681029,0.212367,94177.0,94160.0,0.212402]
[1736520681253,0.00141218,94197.0,94161.0,0.10429976]
[1736520681254,0.212323,94196.0,94161.0,0.10429976]
[1736520681465,8.51e-05,94197.0,94161.0,0.10429976]
[1736520681714,8.51e-05,94197.0,94168.0,0.15]
[1736520681933,8.51e-05,94197.0,94169.0,0.10429976]
[1736520682140,8.51e-05,94197.0,94161.0,0.212401]
[1736520682141,0.11565976,94196.0,94161.0,0.212401]
[1736520682324,0.39959497,94190.0,94140.0,0.0455]
[1736520682605,0.29959497,94180.0,94141.0,0.10429976]
[1736520682826,0.15,94178.0,94141.0,0.11318971]
[1736520683033,0.212372,94174.0,94141.0,0.11318971]
[1736520683241,0.15,94178.0,94141.0,0.11318971]
[1736520683451,0.212397,94163.0,94145.0,0.212438]
[1736520683653,0.0013275,94162.0,94141.0,0.00888995]
[1736520683872,0.00132766,94172.0,94118.0,0.0497]
[1736520684095,0.212421,94153.0,94146.0,0.00887925]
[1736520684304,0.212421,94153.0,94137.0,0.212454]
[1736520684305,0.001,94180.0,94148.0,0.15]
[1736520684521,0.212361,94179.0,94163.0,0.023]
[1736520684728,0.001,94180.0,94171.0,0.15]
[1736520684933,0.001,94180.0,94173.0,0.15]
[1736520685150,0.001,94180.0,94176.0,0.023]
[1736520685361,0.212332,94192.0,94178.0,0.023]
[1736520685577,8.51e-05,94197.0,94179.0,0.10429976]
[1736520685794,8.51e-05,94197.0,94180.0,0.023]
[1736520686024,8.51e-05,94197.0,94182.0,0.27729976]
[1736520686240,8.51e-05,94197.0,94196.0,0.023]
[1736520686711,8.51e-05,94197.0,94196.0,0.00898529]
[1736520687109,8.51e-05,94197.0,94181.0,0.023]
[1736520687358,8.51e-05,94197.0,94180.0,0.213358]
[1736520687359,8.51e-05,94197.0,94189.0,0.212338]
[1736520687568,8.51e-05,94197.0,94190.0,0.10429976]
[1736520687777,8.51e-05,94197.0,94191.0,0.023]
[1736520687995,8.51e-05,94197.0,94182.0,0.00953322]
[1736520688220,8.51e-05,94197.0,94191.0,0.15]
[1736520688432,8.51e-05,94197.0,94196.0,0.173]
[1736520688648,8.51e-05,94197.0,94196.0,0.10429976]
[1736520688862,8.51e-05,94197.0,94182.0,0.00953322]
[1736520689040,0.01136,94196.0,94182.0,0.00953322]
[1736520689534,0.0013271,94195.0,94182.0,0.00953322]
[1736520689739,0.212348,94185.0,94182.0,0.00953322]
[1736520689957,8.51e-05,94197.0,94183.0,0.10429976]
[1736520690175,8.51e-05,94197.0,94185.0,0.023]
[1736520690390,8.51e-05,94197.0,94168.0,0.15]
[1736520690391,0.212323,94196.0,94184.0,0.00952443]
[1736520690609,0.424687,94187.0,94184.0,0.00952443]
[1736520690818,0.00132729,94186.0,94151.0,0.212424]
[1736520691023,0.15,94195.0,94152.0,0.10429976]
[1736520691235,0.15,94195.0,94159.0,0.023]
[1736520691450,0.15,94195.0,94161.0,0.023]
[1736520691656,0.15,94195.0,94162.0,0.10429976]
[1736520691657,0.00132715,94194.0,94162.0,0.10429976]
[1736520691865,8.51e-05,94197.0,94170.0,0.173]
[1736520692078,8.51e-05,94197.0,94169.0,0.212384]
[1736520692079,0.01136,94195.0,94172.0,0.15]
[1736520692276,0.29959497,94190.0,94171.0,0.00935943]
[1736520692499,0.00132734,94189.0,94173.0,0.03235515]
[1736520692714,8.51e-05,94197.0,94174.0,0.12729976]
[1736520692920,0.212339,94189.0,94175.0,0.023]
[1736520693134,0.213328,94194.0,94178.0,0.212363]
[1736520693345,0.001,94194.0,94179.0,0.12729976]
[1736520693561,0.212335,94191.0,94179.0,0.13664207]
[1736520693774,0.01136,94196.0,94179.0,0.0068745]
[1736520693775,0.00132723,94190.0,94179.0,0.0068745]
[1736520693992,0.212355,94182.0,94179.0,0.0068745]
[1736520694261,0.212369,94176.0,94158.0,0.212406]
[1736520694462,0.001,94189.0,94165.0,0.023]
[1736520694463,0.212353,94183.0,94165.0,0.023]
[1736520694672,0.001,94189.0,94167.0,0.023]
[1736520694882,0.212341,94188.0,94166.0,0.11366988]
[1736520695087,0.212383,94170.0,94168.0,0.00936584]
[1736520695316,0.212383,94170.0,94167.0,0.00688803]
[1736520695317,0.00132742,94169.0,94167.0,0.00688803]
[1736520695524,0.212388,94167.0,94123.0,0.0778]
[1736520695758,0.01268763,94166.0,94126.0,0.10429976]
[1736520695958,0.212411,94157.0,94135.0,0.212459]
[1736520696168,0.212413,94156.0,94136.0,0.10429976]
[1736520696387,0.01136,94166.0,94136.0,0.10429976]
[1736520696600,0.00132764,94165.0,94138.0,0.023]
[1736520696811,0.21242,94153.0,94140.0,0.023]
[1736520697030,0.0220194,94166.0,94142.0,0.023]
[1736520697242,0.0220194,94166.0,94142.0,0.12729976]
[1736520697243,0.212415,94156.0,94142.0,0.12729976]
[1736520697445,0.212404,94160.0,94144.0,0.023]
[1736520697651,0.212441,94144.0,94143.0,0.00941934]
[1736520697869,0.212436,94146.0,94143.0,0.00941934]
[1736520698078,0.212436,94146.0,94099.0,0.076]
[1736520698079,0.21249,94122.0,94099.0,0.076]
[1736520698258,0.01136,94145.0,94100.0,0.10429976]
[1736520698501,0.212477,94128.0,94111.0,0.212515]
[1736520698716,0.29959497,94140.0,94099.0,0.076]
[1736520698931,0.29959497,94140.0,94100.0,0.10429976]
[1736520698932,0.02172279,94138.0,94100.0,0.10429976]
[1736520699160,0.212474,94129.0,94100.0,0.10429976]
[1736520699369,0.212533,94103.0,94095.0,0.00017]
[1736520699599,0.212544,94099.0,94095.0,0.00017]
[1736520700019,0.01136,94114.0,94095.0,0.00017]
[1736520700234,0.1,94137.0,94101.0,0.212537]
[1736520700235,0.01136,94113.0,94101.0,0.212537]
[1736520700443,0.212504,94116.0,94102.0,0.12729976]
[1736520700689,0.212517,94110.0,94103.0,0.023]
[1736520700947,0.212548,94096.0,94095.0,0.00017]
[1736520701183,0.31684776,94096.0,94095.0,0.00017]
[1736520701391,0.212614,94067.0,94046.0,0.00017]
[1736520701606,0.13028293,94096.0,94047.0,0.10429976]
[1736520701607,0.212636,94058.0,94047.0,0.10429976]
[1736520701789,0.01136,94064.0,94047.0,0.10429976]
[1736520702054,0.02116945,94082.0,94047.0,0.10429976]
[1736520702055,0.01136,94067.0,94050.0,0.00017]
[1736520702235,0.21263,94060.0,94050.0,0.00017]
[1736520702681,0.212644,94054.0,94050.0,0.00017]
[1736520703295,0.212639,94056.0,94050.0,0.00017]
[1736520703500,0.425287,94054.0,94050.0,0.00017]
[1736520703912,0.01136,94055.0,94050.0,0.00017]
[1736520703913,0.212648,94052.0,94050.0,0.00017]
[1736520704120,0.00132921,94051.0,94050.0,0.00017]
[1736520704322,0.212648,94052.0,94050.0,0.00017]
[1736520704453,0.10562903,94051.0,94050.0,0.00017]
[1736520704653,0.29240523,94051.0,94050.0,0.00017]
[1736520704853,0.39107596,94051.0,94050.0,0.00017]
[1736520705235,0.25429976,94051.0,94050.0,0.00017]
[1736520705443,0.462659,94047.0,94046.0,0.00017]
[1736520705658,0.1,94039.0,93983.0,0.212802]
[1736520705861,0.1,94033.0,93982.0,0.0822]
[1736520706068,0.212734,94014.0,93978.0,0.0475]
[1736520706480,0.01136,94018.0,93985.0,0.212799]
[1736520706699,0.425455,94017.0,93985.0,0.212799]
[1736520706906,0.425455,94017.0,93978.0,0.260314]
[1736520707076,0.212732,94015.0,93981.0,0.15]
[1736520707351,0.00132975,94014.0,93984.0,0.15]
[1736520707553,0.00132975,94014.0,93989.0,0.15]
[1736520707755,0.212727,94017.0,93994.0,0.15]
[1736520707959,0.01136,94014.0,93999.0,0.212767]
[1736520708188,0.01136,94014.0,94000.0,0.023]
[1736520708395,0.01136,94014.0,94002.0,0.023]
[1736520708505,0.01136,94014.0,94001.0,0.00639037]
[1736520708714,0.29959497,94011.0,94001.0,0.00639037]
[1736520708919,0.212745,94009.0,93969.0,0.212834]
[1736520709120,0.00132989,94008.0,93981.0,0.15]
[1736520709373,0.21275,94007.0,93983.0,0.15]
[1736520709578,0.212754,94005.0,93985.0,0.15]
[1736520709786,0.212752,94006.0,93987.0,0.212795]
[1736520709994,0.212725,94018.0,93999.0,0.212767]
[1736520710205,0.212725,94018.0,93988.0,0.12729976]
[1736520710206,0.01136,94025.0,94001.0,0.173]
[1736520710415,0.01268951,94024.0,94001.0,0.10429976]
[1736520710620,0.29959497,94020.0,94002.0,0.00546311]
[1736520710830,0.212754,94005.0,94002.0,0.00546311]
[1736520711047,0.0013297,94004.0,93978.0,0.0475]
[1736520711252,0.00132984,94018.0,93979.0,0.10429976]
[1736520711463,0.212736,94013.0,93981.0,0.023]
[1736520711671,0.01136,94018.0,93991.0,0.023]
[1736520711871,0.01136,94018.0,93989.0,0.42558]
[1736520711872,0.212706,94027.0,93995.0,0.15]
[1736520712078,0.29959497,94030.0,94000.0,0.023]
[1736520712291,0.212709,94025.0,94001.0,0.10429976]
[1736520712509,0.212733,94015.0,94002.0,0.01753033]
[1736520712722,0.01136,94014.0,94003.0,0.10429976]
[1736520712964,0.002,94020.0,94004.0,1.712756]
[1736520713174,0.002,94020.0,94005.0,0.10429976]
[1736520713377,0.01059927,94037.0,94006.0,0.15]
[1736520713578,0.212707,94026.0,94008.0,0.362747]
[1736520713779,0.01136,94037.0,94009.0,0.10429976]
[1736520714094,0.21272,94021.0,94009.0,0.10976019]
[1736520714248,0.212716,94023.0,94009.0,0.32250419]
[1736520714454,0.212715,94023.0,94012.0,0.023]
[1736520714638,0.02177958,94037.0,94010.0,0.023]
[1736520714840,0.10562924,94036.0,94013.0,0.0054589]
[1736520715090,0.29959497,94030.0,93997.0,0.15]
[1736520715299,0.212749,94008.0,93998.0,0.10429976]
[1736520715503,0.212705,94027.0,94010.0,0.023]
[1736520715703,0.01136,94049.0,94012.0,0.385738]
[1736520715876,0.00132925,94048.0,94031.0,0.023]
[1736520716086,0.01136,94048.0,94035.0,0.023]
[1736520716359,0.01136,94048.0,94036.0,0.212684]
[1736520716564,0.00132916,94047.0,94002.0,0.15]
[1736520716773,0.01136,94048.0,94015.0,0.25429976]
[1736520717003,0.00132926,94059.0,94016.0,0.15]
[1736520717004,0.01136,94047.0,94016.0,0.15]
[1736520717213,0.01136,94047.0,94001.0,0.31069496]
[1736520717214,0.01136,94047.0,94035.0,0.023]
[1736520717413,0.01089271,94062.0,94001.0,0.31069496]
[1736520717414,0.212616,94067.0,94037.0,0.173]
[1736520717620,0.212566,94089.0,94037.0,0.173]
[1736520717621,0.212616,94066.0,94039.0,0.15]
[1736520717831,0.01136,94068.0,94058.0,0.212632]
[1736520718035,0.212587,94080.0,94060.0,0.023]
[1736520718239,0.042588,94098.0,94062.0,0.023]
[1736520718446,0.042588,94098.0,94064.0,0.173]
[1736520718651,0.01136,94098.0,94066.0,0.15]
[1736520718863,0.212568,94088.0,94074.0,0.212596]
[1736520719054,0.212578,94084.0,94071.0,0.15]
[1736520719175,0.0310955,94097.0,94050.0,0.0454]
[1736520719393,0.212608,94070.0,94057.0,0.212634]
[1736520719600,0.212596,94076.0,94059.0,0.425263]
[1736520719793,0.001,94066.0,94060.0,0.12809319]
[1736520720003,0.21262,94065.0,94060.0,0.00079343]
[1736520720215,0.01136,94075.0,94037.0,0.212681]
[1736520720216,0.212598,94074.0,94037.0,0.212681]
[1736520720452,0.212603,94072.0,94038.0,0.10429976]
[1736520720697,0.00132906,94071.0,94039.0,0.15]
[1736520720908,0.01136,94070.0,94041.0,0.173]
[1736520721128,0.29959497,94090.0,94049.0,0.023]
[1736520721129,0.01136,94069.0,94049.0,0.023]
[1736520721334,0.02099186,94091.0,94042.0,0.10429976]
[1736520721335,0.002,94074.0,94051.0,0.173]
[1736520721540,0.002,94074.0,94073.0,0.2967]
[1736520721754,0.002,94074.0,94073.0,0.40099976]
[1736520721959,0.002,94074.0,94073.0,0.41056905]
[1736520722172,0.04258,94118.0,94084.0,0.1]
[1736520722392,0.01136,94125.0,94084.0,0.1]
[1736520722393,0.212487,94124.0,94109.0,0.235519]
[1736520722591,0.01136,94125.0,94113.0,0.212508]
[1736520722806,0.01136,94125.0,94114.0,0.2867812]
[1736520723021,0.01136,94125.0,94115.0,0.02366917]
[1736520723230,0.01136,94125.0,94115.0,0.00066917]
[1736520723478,0.0001702,94142.0,94124.0,0.212485]
[1736520723697,0.0001702,94142.0,94115.0,0.00066917]
[1736520723698,0.0013279,94141.0,94115.0,0.00066917]
[1736520723924,0.0001702,94142.0,94125.0,0.00064659]
[1736520724131,0.0001702,94142.0,94137.0,0.023]
[1736520724348,0.0001702,94142.0,94141.0,0.173]
[1736520724610,0.0001702,94142.0,94141.0,0.27729976]
[1736520725232,0.0001702,94166.0,94165.0,0.212393]
[1736520725434,0.0001702,94166.0,94165.0,0.46669276]
[1736520725633,0.0001702,94166.0,94165.0,0.023]
[1736520725850,0.0001702,94166.0,94142.0,0.0473]
[1736520726059,0.0001702,94166.0,94165.0,0.10429976]
[1736520726301,0.0001702,94166.0,94165.0,0.12729976]
[1736520726716,0.0001702,94166.0,94165.0,0.12785609]
[1736520727826,0.0001702,94166.0,94165.0,0.14122835]
[1736520728031,0.0001702,94166.0,94165.0,0.01392859]
[1736520728242,0.01285778,94166.0,94165.0,0.00492859]
[1736520728455,0.01285778,94166.0,94126.0,0.0792]
[1736520728456,0.212395,94164.0,94126.0,0.0792]
[1736520728676,0.0115302,94166.0,94141.0,0.212446]
[1736520728882,0.2239202,94166.0,94165.0,0.003]
[1736520729091,0.57821996,94166.0,94165.0,0.0014872]
[1736520729295,0.637233,94157.0,94106.0,0.212526]
[1736520729504,0.29959497,94150.0,94107.0,0.10429976]
[1736520729719,0.29959497,94140.0,94107.0,0.31682176]
[1736520729943,0.29959497,94130.0,94096.0,0.0474]
[1736520730149,0.29959497,94130.0,94084.0,0.081]
[1736520730150,0.01268818,94129.0,94097.0,0.10429976]